bitfinex/quotes_ETHUSD_20250916
["timestamp","ask_amount","ask_price","bid_price","bid_amount"]
[1757997266928,0.6527,4519.9,4519.8,6.47982412]
[1757997267854,0.2195,4519.9,4519.8,6.47982412]
[1757997268945,0.2195,4519.9,4519.8,20.97982412]
[1757997271186,0.2195,4519.9,4519.8,20.63251827]
[1757997271363,0.002,4519.9,4519.8,7.38511827]
[1757997271745,0.002,4519.9,4519.8,6.91391827]
[1757997271950,0.002,4519.9,4519.8,21.41391827]
[1757997272155,0.002,4519.9,4519.8,21.88511827]
[1757997272487,1e-08,4520.4,4520.3,2.21224255]
[1757997272638,1e-08,4520.4,4520.3,7.63436497]
[1757997272848,1e-08,4520.4,4520.3,8.97524255]
[1757997273252,1e-08,4520.4,4520.3,23.47524255]
[1757997282199,1e-08,4520.4,4520.3,23.47624255]
[1757997282401,1e-08,4520.4,4520.3,25.61539438]
[1757997284582,1e-08,4520.4,4520.3,26.40739438]
[1757997285269,1e-08,4520.4,4520.3,26.49604008]
[1757997285993,1e-08,4520.4,4520.3,25.23184008]
[1757997286366,1e-08,4520.4,4520.3,25.70304008]
[1757997287777,1e-08,4520.4,4520.3,29.89304008]
[1757997291638,1e-08,4520.4,4520.3,29.42184008]
[1757997292511,1e-08,4520.4,4520.3,29.87454008]
[1757997293082,0.30190001,4520.4,4520.3,24.94244008]
[1757997293296,0.30190001,4520.4,4520.3,28.63944008]
[1757997293698,0.30190001,4520.4,4520.3,24.44944008]
[1757997295720,1e-08,4520.4,4520.3,24.90674008]
[1757997296121,1e-08,4520.4,4520.3,25.21894008]
[1757997296442,1e-08,4520.4,4520.3,25.67084008]
[1757997302538,0.19600001,4520.4,4520.3,24.90674008]
[1757997302738,0.19600001,4520.4,4520.3,24.44944008]
[1757997303347,0.19600001,4520.4,4520.3,20.75244008]
[1757997303672,0.19600001,4520.4,4520.3,24.44944008]
[1757997303822,0.002,4520.9,4520.4,2.21219361]
[1757997304023,0.002,4520.9,4520.8,0.1104]
[1757997304224,0.002,4520.9,4520.8,6.01939787]
[1757997304438,0.101,4520.9,4520.8,6.01939787]
[1757997306559,0.101,4520.9,4520.8,20.51939787]
[1757997307124,0.4665,4520.9,4520.8,16.82239787]
[1757997307347,0.8229,4520.9,4520.8,20.51939787]
[1757997307858,0.8229,4520.9,4520.8,6.01939787]
[1757997309170,0.8229,4520.9,4520.8,3.697]
[1757997310773,0.8229,4520.9,4520.4,0.1104]
[1757997310973,0.8229,4520.9,4520.5,3.697]
[1757997311273,0.8229,4520.9,4520.6,3.697]
[1757997311274,0.7219,4520.8,4520.6,3.697]
[1757997311575,0.821,4520.7,4520.6,3.697]
[1757997313572,0.4671,4520.7,4520.6,3.697]
[1757997314442,0.821,4520.7,4520.6,3.697]
[1757997316746,0.4671,4520.7,4520.6,3.697]
[1757997317889,0.4691,4520.7,4520.6,3.697]
[1757997318096,0.823,4520.7,4520.6,3.697]
[1757997318795,0.823,4520.7,4520.3,1.702]
[1757997319108,0.7194,4520.6,4520.4,3.697]
[1757997319309,0.821,4520.5,4520.4,3.697]
[1757997321199,3.03315471,4520.5,4520.3,0.001]
[1757997321401,0.3514,4520.4,4520.3,0.001]
[1757997321867,0.8235,4520.4,4520.3,0.001]
[1757997322393,3.03319361,4520.4,4520.3,0.001]
[1757997322965,6.03319361,4520.4,4520.3,0.001]
[1757997325774,3.821,4520.4,4520.3,0.001]
[1757997326186,6.03319361,4520.4,4520.3,0.001]
[1757997326390,3.4721,4520.4,4520.3,0.001]
[1757997326590,3.1066,4520.4,4520.3,0.001]
[1757997328514,5.31879361,4520.4,4520.3,0.001]
[1757997329522,3.1066,4520.4,4520.3,0.001]
[1757997330019,5.31879361,4520.4,4520.3,0.001]
[1757997330316,5.68429361,4520.4,4520.3,0.001]
[1757997331022,6.03319361,4520.4,4520.3,0.001]
[1757997331220,5.68429361,4520.4,4520.3,0.001]
[1757997332419,3.1066,4520.4,4520.3,0.001]
[1757997334629,5.31879361,4520.4,4520.3,0.001]
[1757997336411,3.1066,4520.4,4520.3,0.001]
[1757997340208,5.31879361,4520.4,4520.3,0.001]
[1757997344626,5.89053986,4520.4,4520.3,0.001]
[1757997345045,5.52503986,4520.4,4520.3,0.001]
[1757997345769,5.98983986,4520.4,4520.3,0.001]
[1757997348384,5.98983986,4520.4,4520.3,0.4658]
[1757997349484,5.98995299,4520.4,4520.3,0.4658]
[1757997351456,5.88033699,4520.4,4520.3,0.4658]
[1757997352051,6.35599823,4520.4,4520.3,0.4658]
[1757997352987,6.35799823,4520.4,4520.3,0.4658]
[1757997353689,6.35799823,4520.4,4520.3,0.9262]
[1757997355288,6.35799823,4520.4,4520.3,1.2376]
[1757997355474,6.35799823,4520.4,4520.3,0.001]
[1757997356065,5.88233699,4520.4,4520.3,0.001]
[1757997356991,9.57833699,4520.4,4520.3,0.4878]
[1757997357499,9.70218998,4520.4,4520.3,0.001]
[1757997357702,10.38423148,4520.4,4520.3,0.001]
[1757997357902,11.89163148,4520.4,4520.3,0.001]
[1757997360570,11.64073148,4520.4,4520.3,0.001]
[1757997360771,11.89163148,4520.4,4520.3,0.001]
[1757997361301,11.89134812,4520.4,4520.3,0.001]
[1757997361501,12.48530666,4520.4,4520.3,0.001]
[1757997361669,11.89134812,4520.4,4520.3,0.001]
[1757997362067,12.48514925,4520.4,4520.3,0.001]
[1757997362906,12.48485074,4520.4,4520.3,0.001]
[1757997363209,11.89105584,4520.4,4520.3,0.001]
[1757997363388,11.89088753,4520.4,4520.3,0.001]
[1757997364314,12.48450483,4520.4,4520.3,0.001]
[1757997364478,8.17210483,4520.4,4520.3,0.001]
[1757997364679,11.17448753,4520.4,4520.3,1.2535]
[1757997366794,7.47896437,4520.4,4520.3,0.7992]
[1757997367028,11.17396437,4520.4,4520.3,1.2535]
[1757997368150,6.68696437,4520.4,4520.3,1.2535]
[1757997368430,9.90692845,4520.4,4520.3,1.2535]
[1757997368610,10.38196437,4520.4,4520.3,1.2535]
[1757997369125,6.68696437,4520.4,4520.3,1.2535]
[1757997369327,6.21192845,4520.4,4520.3,1.2535]
[1757997369508,9.90692845,4520.4,4520.3,1.2535]
[1757997369704,10.38196437,4520.4,4520.3,1.2535]
[1757997370502,9.57711069,4520.4,4520.3,1.2535]
[1757997371241,9.57711069,4520.4,4520.3,0.9421]
[1757997371443,9.57711069,4520.4,4520.3,0.001]
[1757997371662,9.57711069,4520.4,4520.3,0.4878]
[1757997371813,9.57711069,4520.4,4520.3,0.9421]
[1757997372009,9.57711069,4520.4,4520.3,0.001]
[1757997372233,10.05220268,4520.4,4520.3,0.001]
[1757997372423,9.57711069,4520.4,4520.3,0.001]
[1757997372622,9.57711069,4520.4,4520.3,0.4878]
[1757997373249,11.82765455,4520.4,4520.3,0.001]
[1757997373957,11.89145455,4520.4,4520.3,0.001]
[1757997374552,11.82765455,4520.4,4520.3,0.001]
[1757997375669,11.82773808,4520.4,4520.3,0.001]
[1757997376142,11.89153808,4520.4,4520.3,0.001]
[1757997376455,12.48515538,4520.4,4520.3,0.001]
[1757997377021,11.89153808,4520.4,4520.3,0.001]
[1757997378566,11.89146784,4520.4,4520.3,0.001]
[1757997381478,11.82766784,4520.4,4520.3,0.001]
[1757997381659,11.46216784,4520.4,4520.3,0.001]
[1757997382255,12.05563393,4520.4,4520.3,0.001]
[1757997382461,11.46216784,4520.4,4520.3,0.001]
[1757997382861,8.36064389,4520.4,4520.3,0.001]
[1757997383061,11.76764389,4520.4,4520.3,0.001]
[1757997383275,12.05334389,4520.4,4520.3,0.001]
[1757997383784,12.05326109,4520.4,4520.3,0.001]
[1757997386279,11.76756109,4520.4,4520.3,1.2857]
[1757997386794,11.76756109,4520.4,4520.3,0.001]
[1757997386960,11.86656109,4520.4,4520.3,0.001]
[1757997387160,12.23206109,4520.4,4520.3,0.001]
[1757997387458,11.63858504,4520.4,4520.3,0.001]
[1757997388659,12.6753784,4520.4,4520.3,0.001]
[1757997389101,11.88948504,4520.4,4520.3,0.001]
[1757997389260,12.6807889,4520.4,4520.3,0.001]
[1757997390723,13.0278119,4520.4,4520.3,0.001]
[1757997391095,15.3608119,4520.4,4520.3,0.001]
[1757997391424,14.56950804,4520.4,4520.3,0.001]
[1757997391624,24.27139704,4520.4,4520.3,0.001]
[1757997391783,18.97401804,4520.4,4520.3,0.001]
[1757997392184,18.43752204,4520.4,4520.3,0.001]
[1757997392822,13.50708504,4520.4,4520.3,0.001]
[1757997393113,16.70289284,4520.4,4520.3,0.001]
[1757997393316,14.74402019,4520.4,4520.3,0.001]
[1757997393718,14.64502019,4520.4,4520.3,0.001]
[1757997393906,14.74552019,4520.4,4520.3,0.001]
[1757997394788,15.11102019,4520.4,4520.3,0.001]
[1757997395684,14.74552019,4520.4,4520.3,0.001]
[1757997395889,14.74532553,4520.4,4520.3,0.001]
[1757997396520,14.64454184,4520.4,4520.3,0.001]
[1757997396711,14.6444598,4520.4,4520.3,0.001]
[1757997396912,8.6164598,4520.4,4520.3,0.001]
[1757997397118,12.3114598,4520.4,4520.3,1.2857]
[1757997399319,11.964452,4520.4,4520.3,1.2857]
[1757997400517,8.269452,4520.4,4520.3,0.813]
[1757997400721,11.17352465,4520.4,4520.3,1.2857]
[1757997402612,11.52051675,4520.4,4520.3,1.2857]
[1757997404240,12.3114441,4520.4,4520.3,1.2857]
[1757997405933,12.3104441,4520.4,4520.3,1.2857]
[1757997406135,8.6164441,4520.4,4520.3,1.2857]
[1757997406342,12.3104441,4520.4,4520.3,1.2857]
[1757997408746,11.51976149,4520.4,4520.3,1.2857]
[1757997411645,11.51991696,4520.4,4520.3,1.2857]
[1757997412447,7.82591696,4520.4,4520.3,0.813]
[1757997412635,11.51991696,4520.4,4520.3,1.1615002]
[1757997413410,11.51991929,4520.4,4520.3,1.1615002]
[1757997415251,12.31084664,4520.4,4520.3,1.1615002]
[1757997416075,11.51991929,4520.4,4520.3,1.1615002]
[1757997417257,12.11380765,4520.4,4520.3,1.1615002]
[1757997417464,12.11380765,4520.4,4520.3,0.7147002]
[1757997417779,11.76681555,4520.4,4520.3,0.3985002]
[1757997418278,11.76681555,4520.4,4520.3,0.8577002]
[1757997418443,11.76681555,4520.4,4520.3,1.1674002]
[1757997420740,11.76681555,4520.4,4520.3,1.1684002]
[1757997422274,11.76681555,4520.4,4520.3,0.3995002]
[1757997422480,11.76681555,4520.4,4520.3,0.001]
[1757997423082,11.76681555,4520.4,4520.3,0.4985]
[1757997423279,11.76681555,4520.4,4520.3,0.8082]
[1757997423498,11.76681555,4520.4,4520.3,1.2674]
[1757997423676,8.07281555,4520.4,4520.3,1.2674]
[1757997423872,12.05681555,4520.4,4520.3,0.001]
[1757997424179,11.46292719,4520.4,4520.3,0.001]
[1757997424382,12.71665454,4520.4,4520.3,0.001]
[1757997424566,11.98652719,4520.4,4520.3,0.001]
[1757997424972,11.92572719,4520.4,4520.3,0.001]
[1757997425777,11.98652719,4520.4,4520.3,0.001]
[1757997425986,13.43391352,4520.4,4520.3,0.001]
[1757997426149,15.76691352,4520.4,4520.3,0.001]
[1757997426346,31.32020348,4520.4,4520.3,0.001]
[1757997427288,28.95421048,4520.4,4520.3,0.001]
[1757997427973,3.792,4520.0,4519.8,0.001]
[1757997428173,9.2874281,4519.9,4519.8,0.001]
[1757997428372,9.5761281,4519.9,4519.8,0.001]
[1757997428753,11.78856642,4519.9,4519.8,0.001]
[1757997429282,10.7083879,4519.9,4519.8,0.001]
[1757997429686,10.79711895,4519.9,4519.8,0.8082]
[1757997429987,10.79711895,4519.9,4519.8,1.2674]
[1757997431667,7.10411895,4519.9,4519.8,1.2674]
[1757997431899,10.32200736,4519.9,4519.8,1.2674]
[1757997432195,10.79711895,4519.9,4519.8,1.2674]
[1757997432399,7.10411895,4519.9,4519.8,1.2674]
[1757997432563,5.83700736,4519.9,4519.8,1.2674]
[1757997432764,10.12342043,4519.9,4519.8,1.2674]
[1757997432967,10.79711895,4519.9,4519.8,1.2674]
[1757997433183,7.10411895,4519.9,4519.8,1.2674]
[1757997433385,10.32200736,4519.9,4519.8,1.2674]
[1757997433598,10.79711895,4519.9,4519.8,1.2674]
[1757997433871,10.00524023,4519.9,4519.8,1.2674]
[1757997434204,10.79724023,4519.9,4519.8,1.2674]
[1757997434368,7.10424023,4519.9,4519.8,1.2674]
[1757997434569,10.79724023,4519.9,4519.8,1.2674]
[1757997437569,10.26128096,4519.9,4519.8,1.2674]
[1757997437788,10.79726233,4519.9,4519.8,1.2674]
[1757997439287,7.10426233,4519.9,4519.8,1.2674]
[1757997439614,10.79726233,4519.9,4519.8,1.2674]
[1757997440379,10.79733361,4519.9,4519.8,1.2674]
[1757997440812,8.58489529,4519.9,4519.8,1.2674]
[1757997440989,10.79733361,4519.9,4519.8,1.2674]
[1757997444115,10.00533361,4519.9,4519.8,1.2674]
[1757997446524,10.00533361,4519.9,4519.8,0.8082]
[1757997446801,10.00533361,4519.9,4519.8,1.2657]
[1757997452123,10.00433361,4519.9,4519.8,1.2657]
[1757997452801,10.00443335,4519.9,4519.8,1.2657]
[1757997456902,10.00443335,4519.9,4519.8,0.001]
[1757997457902,10.10343335,4519.9,4519.8,0.001]
[1757997458397,10.00443335,4519.9,4519.8,1.2268]
[1757997459501,10.00443335,4519.9,4519.8,0.001]
[1757997459723,10.10343335,4519.9,4519.8,0.001]
[1757997460600,10.89543335,4519.9,4519.8,0.001]
[1757997461230,11.35303335,4519.9,4519.8,0.001]
[1757997461424,11.94644642,4519.9,4519.8,0.001]
[1757997461628,11.35303335,4519.9,4519.8,0.001]
[1757997462105,12.39541187,4519.9,4519.8,0.001]
[1757997462835,19.46541187,4519.9,4519.8,0.001]
[1757997463039,18.67393335,4519.9,4519.8,0.001]
[1757997463403,19.46655901,4519.9,4519.8,0.001]
[1757997464218,19.46675775,4519.9,4519.8,0.001]
[1757997464622,18.65925775,4519.9,4519.8,0.001]
[1757997464801,17.86663209,4519.9,4519.8,0.001]
[1757997465205,17.86663209,4519.9,4519.8,0.4708]
[1757997465602,10.79663209,4519.9,4519.8,0.4708]
[1757997466330,7.10463209,4519.9,4519.8,0.4708]
[1757997466607,10.79663209,4519.9,4519.8,0.4708]
[1757997467325,10.89563209,4519.9,4519.8,0.001]
[1757997467809,11.3533846,4519.9,4519.8,0.001]
[1757997468009,11.6042846,4519.9,4519.8,0.001]
[1757997468317,11.3533846,4519.9,4519.8,0.001]
[1757997471108,10.8957846,4519.9,4519.8,0.001]
[1757997473152,11.39078313,4519.9,4519.8,1.2135]
[1757997476054,11.38978313,4519.9,4519.8,1.2135]
[1757997476250,11.38978313,4519.9,4519.8,1.2115]
[1757997476443,10.7957846,4519.9,4519.8,1.2115]
[1757997476824,7.1047846,4519.9,4519.8,1.2115]
[1757997477019,10.7957846,4519.9,4519.8,1.2115]
[1757997477220,7.1047846,4519.9,4519.8,1.2115]
[1757997477420,10.7957846,4519.9,4519.8,1.2115]
[1757997479153,10.7957846,4519.9,4519.8,0.7789]
[1757997479352,10.7957846,4519.9,4519.8,0.001]
[1757997479858,10.7957846,4519.9,4519.8,0.4994]
[1757997480217,10.7957846,4519.9,4519.8,0.001]
[1757997481456,10.7957846,4519.9,4519.8,0.4994]
[1757997481755,10.7957846,4519.9,4519.8,1.2227]
[1757997483051,7.1047846,4519.9,4519.8,1.2227]
[1757997483255,10.7957846,4519.9,4519.8,1.2227]
[1757997483927,4.10034628,4519.9,4519.8,1.2227]
[1757997484133,7.79134628,4519.9,4519.8,1.2227]
[1757997484337,6.98614775,4519.9,4519.8,1.2227]
[1757997485347,3.29514775,4519.9,4519.8,1.2227]
[1757997485550,6.98614775,4519.9,4519.8,1.2227]
[1757997487370,3.29514775,4519.9,4519.8,1.2227]
[1757997487738,3.08873105,4519.9,4519.8,1.2227]
[1757997488178,3.19913105,4519.9,4519.8,1.2227]
[1757997489165,3.1104,4519.9,4519.8,1.2227]
[1757997490632,5.32283832,4519.9,4519.8,1.2227]
[1757997491073,9.01383832,4519.9,4519.8,0.7901]
[1757997491249,9.01383832,4519.9,4519.8,1.2227]
[1757997491784,9.01383832,4519.9,4519.8,0.001]
[1757997492283,9.01383832,4519.9,4519.8,0.4994]
[1757997492482,9.01383832,4519.9,4519.8,0.932]
[1757997493089,9.01383832,4519.9,4519.8,1.2227]
[1757997493987,9.01383832,4519.9,4519.8,0.7901]
[1757997494194,9.01383832,4519.9,4519.8,0.4994]
[1757997495775,9.01383832,4519.9,4519.8,0.932]
[1757997496378,9.01383832,4519.9,4519.8,0.4994]
[1757997496567,9.01383832,4519.9,4519.8,0.001]
[1757997496986,9.01383832,4519.9,4519.8,0.7901]
[1757997497188,9.01383832,4519.9,4519.8,1.2227]
[1757997497590,9.31953832,4519.9,4519.8,0.001]
[1757997498409,10.20024791,4519.9,4519.8,0.001]
[1757997498579,11.67337715,4519.9,4519.8,0.001]
[1757997498761,11.71967715,4519.9,4519.8,0.001]
[1757997499365,11.21057715,4519.9,4519.8,0.001]
[1757997499675,10.90487715,4519.9,4519.8,0.4994]
[1757997499895,10.90487715,4519.9,4519.8,1.2227]
[1757997500206,10.79347715,4519.9,4519.8,1.2443]
[1757997501065,9.98917749,4519.9,4519.8,1.2443]
[1757997501695,5.50717749,4519.9,4519.8,1.2443]
[1757997501878,9.19717749,4519.9,4519.8,1.2443]
[1757997502080,5.50717749,4519.9,4519.8,1.2443]
[1757997502280,9.19717749,4519.9,4519.8,1.2443]
[1757997502987,0.1104,4520.2,4519.8,1.36883]
[1757997503298,0.002,4520.3,4519.9,0.97522438]
[1757997503462,0.002,4520.3,4520.1,2.2123113]
[1757997503671,0.002,4520.3,4520.2,2.5263144]
[1757997503869,0.002,4520.3,4520.2,2.87425584]
[1757997504065,0.002,4520.3,4520.2,1.61506435]
[1757997504369,0.002,4520.3,4520.2,1.245]
[1757997509223,0.002,4520.3,4520.2,3.45729149]
[1757997509704,0.002,4520.3,4520.2,3.4794144]
[1757997510116,0.002,4520.3,4520.2,1.245]
[1757997511837,0.002,4520.3,4520.2,3.45729149]
[1757997511993,0.002,4520.3,4520.2,3.81406064]
[1757997512918,0.002,4520.3,4520.2,3.83618355]
[1757997515022,0.002,4520.3,4520.2,3.81406064]
[1757997515649,0.002,4520.3,4520.2,18.31406064]
[1757997519840,0.002,4520.3,4520.2,3.81406064]
[1757997522856,0.101,4520.3,4519.8,0.001]
[1757997523156,0.002,4520.3,4519.9,0.9531]
[1757997523354,0.002,4520.3,4520.0,0.9531]
[1757997523719,0.002,4520.3,4520.1,0.001]
[1757997525860,0.002,4520.3,4520.1,0.4999]
[1757997526759,0.002,4520.3,4520.1,0.9541]
[1757997527446,0.002,4520.3,4520.2,0.4989]
[1757997527640,0.002,4520.3,4520.2,0.81292291]
[1757997527856,0.002,4520.3,4520.2,1.26712291]
[1757997529054,0.002,4520.3,4520.1,0.001]
[1757997529254,0.002,4520.3,4520.1,0.4999]
[1757997529443,0.002,4520.3,4520.2,0.02212291]
[1757997530462,0.002,4520.3,4520.2,1.1856]
[1757997531769,0.002,4520.3,4520.2,0.462]
[1757997532872,0.002,4520.3,4520.2,1.1856]
[1757997533068,0.002,4520.3,4520.2,1.52550367]
[1757997533269,0.002,4520.3,4520.2,7.56131807]
[1757997533447,0.002,4520.3,4520.2,7.53919516]
[1757997533647,0.002,4520.3,4520.2,22.03919516]
[1757997535069,0.002,4520.3,4520.2,19.39310367]
[1757997535285,0.002,4520.3,4520.2,1.20210367]
[1757997535481,0.002,4520.3,4520.2,7.10639516]
[1757997535783,0.002,4520.3,4520.2,7.56489516]
[1757997536383,0.002,4520.3,4520.2,5.35260367]
[1757997536585,0.002,4520.3,4520.2,7.56489516]
[1757997539388,0.002,4520.3,4520.2,22.06489516]
[1757997542178,0.002,4520.3,4520.2,7.56489516]
[1757997542689,0.002,4520.3,4520.2,22.06489516]
[1757997544294,0.5638,4520.3,4520.1,0.001]
[1757997544454,0.101,4520.3,4520.1,0.001]
[1757997546595,3.5638,4520.3,4520.1,0.001]
[1757997546895,0.4628,4520.2,4520.1,0.001]
[1757997547056,2.92599149,4520.2,4520.1,0.001]
[1757997547257,3.02649149,4520.2,4520.1,0.001]
[1757997549002,5.77559149,4520.2,4520.1,0.001]
[1757997549206,6.02499149,4520.2,4520.1,0.001]
[1757997551220,6.11369381,4520.2,4520.1,0.001]
[1757997552816,5.86429381,4520.2,4520.1,0.001]
[1757997558984,5.40149381,4520.2,4520.1,0.001]
[1757997559323,9.11149381,4520.2,4520.1,0.001]
[1757997561722,9.57089381,4520.2,4520.1,0.001]
[1757997562727,9.11149381,4520.2,4520.1,0.001]
[1757997563101,6.89920232,4520.2,4520.1,0.001]
[1757997563422,9.11149381,4520.2,4520.1,0.001]
[1757997565704,5.86089381,4520.2,4520.1,0.001]
[1757997565903,9.56789381,4520.2,4520.1,0.001]
[1757997568242,9.10849381,4520.2,4520.1,0.001]
[1757997568805,6.79570232,4520.2,4520.1,0.001]
[1757997569033,9.00799381,4520.2,4520.1,0.001]
[1757997569542,9.00799381,4520.2,4520.1,0.4667]
[1757997570252,9.00799381,4520.2,4520.1,0.001]
[1757997570856,9.10999381,4520.2,4520.1,0.001]
[1757997572326,9.31635708,4520.2,4520.1,0.001]
[1757997573560,7.00206559,4520.2,4520.1,0.4667]
[1757997573842,6.79270232,4520.2,4520.1,1.2202]
[1757997574254,6.99931515,4520.2,4520.1,1.2202]
[1757997575071,9.21160664,4520.2,4520.1,1.2202]
[1757997576172,0.29531515,4520.2,4520.1,1.34232]
[1757997576455,0.08870232,4520.2,4520.1,3.55466043]
[1757997576661,0.08870232,4520.2,4520.1,3.57678383]
[1757997576820,0.002,4520.3,4520.2,2.21229149]
[1757997577010,0.002,4520.3,4520.2,5.20356193]
[1757997577223,0.002,4520.3,4520.2,5.47143902]
[1757997585665,0.002,4520.3,4520.2,9.17243902]
[1757997586540,0.002,4520.3,4520.2,6.96014753]
[1757997586741,0.002,4520.3,4520.2,9.17243902]
[1757997586936,0.002,4520.3,4520.2,6.49664753]
[1757997587170,0.002,4520.3,4520.2,5.74094753]
[1757997587782,0.002,4520.3,4520.2,9.17243902]
[1757997587980,0.002,4520.3,4520.2,7.13249149]
[1757997588838,0.002,4520.3,4520.2,4.9202]
[1757997589246,0.101,4520.3,4520.1,3.701]
[1757997589544,0.101,4520.3,4520.1,4.1667]
[1757997589545,0.002,4520.3,4520.1,4.1667]
[1757997589777,0.002,4520.3,4520.1,6.37902994]
[1757997590084,0.002,4520.3,4520.1,6.84252994]
[1757997590266,0.002,4520.3,4520.2,2.69819149]
[1757997590580,0.002,4520.3,4520.2,3.4744144]
[1757997598161,0.002,4520.3,4520.2,3.45149149]
[1757997598360,0.002,4520.3,4520.2,3.56189149]
[1757997598982,0.002,4520.3,4520.2,7.25889149]
[1757997599186,0.002,4520.3,4520.2,8.00048255]
[1757997599565,0.002,4520.3,4520.2,8.29778255]
[1757997600973,0.002,4520.3,4520.2,4.84629106]
[1757997601175,0.2883,4520.3,4520.2,3.8074]
[1757997602397,0.002,4520.3,4520.2,3.8074]
[1757997603099,0.002,4520.3,4520.2,6.01969149]
[1757997603728,0.002,4520.3,4520.2,7.24089149]
[1757997604515,0.002,4520.3,4520.2,5.0286]
[1757997604816,0.002,4520.3,4520.2,4.53159575]
[1757997605015,0.002,4520.3,4520.2,4.99949575]
[1757997605394,0.002,4520.3,4520.2,5.45549575]
[1757997606336,0.002,4520.3,4520.2,3.8074]
[1757997606494,0.002,4520.3,4520.1,0.001]
[1757997606495,0.5638,4520.3,4520.1,0.001]
[1757997606690,0.101,4520.3,4520.2,3.697]
[1757997606896,0.5638,4520.3,4520.2,3.697]
[1757997608435,0.002,4520.3,4520.2,3.697]
[1757997608798,0.002,4520.3,4520.2,4.1649]
[1757997610152,0.101,4520.3,4520.2,3.697]
[1757997610303,0.002,4520.3,4520.2,3.697]
[1757997616002,0.002,4520.3,4520.2,4.4622]
[1757997616225,0.002,4520.3,4520.2,4.9182]
[1757997616761,0.002,4520.3,4520.2,7.13049149]
[1757997616959,0.002,4520.3,4520.2,7.84364064]
[1757997618265,0.002,4520.3,4520.2,5.63134915]
[1757997618429,0.002,4520.3,4520.2,4.9182]
[1757997619072,0.002,4520.3,4520.2,7.13049149]
[1757997619243,0.002,4520.3,4520.2,4.9182]
[1757997619828,0.002,4520.3,4520.2,7.13049149]
[1757997620930,0.002,4520.3,4520.2,7.12649149]
[1757997622242,0.002,4520.3,4520.2,4.9142]
[1757997622965,0.002,4520.3,4520.2,7.12649149]
[1757997625966,0.002,4520.3,4520.2,8.07151878]
[1757997627471,0.002,4520.3,4520.2,8.18191878]
[1757997630372,0.002,4520.3,4520.2,5.96962729]
[1757997630569,0.002,4520.3,4520.2,8.18191878]
[1757997632490,0.002,4520.3,4520.2,0.8756]
[1757997632779,0.5608,4520.3,4520.1,0.001]
[1757997632989,0.101,4520.3,4520.2,3.692]
[1757997634898,0.101,4520.3,4520.2,6.36499149]
[1757997634899,0.002,4520.3,4520.2,6.36499149]
[1757997635035,0.002,4520.3,4520.2,7.10539149]
[1757997635236,0.002,4520.3,4520.2,4.8931]
[1757997635476,0.002,4520.3,4520.2,4.1527]
[1757997635785,0.002,4520.3,4520.2,3.71412291]
[1757997637278,0.002,4520.3,4520.2,3.692]
[1757997637583,0.002,4520.3,4520.2,7.1275144]
[1757997637742,0.002,4520.3,4520.2,7.10539149]
[1757997639650,0.002,4520.3,4520.2,6.67629149]
[1757997639985,0.002,4520.3,4520.2,8.11579867]
[1757997642010,0.002,4520.3,4520.2,6.91469867]
[1757997642219,0.002,4520.3,4520.2,3.8024]
[1757997642510,0.101,4520.3,4520.2,2.32269149]
[1757997642818,0.002,4520.3,4520.2,7.21579149]
[1757997646114,0.002,4520.3,4520.2,3.52379149]
[1757997646414,0.002,4520.3,4520.2,7.21479149]
[1757997651180,0.002,4520.3,4520.2,3.8014]
[1757997652480,0.002,4520.3,4520.2,6.01369149]
[1757997654595,0.002,4520.3,4520.2,6.48239149]
[1757997656019,0.002,4520.3,4520.2,6.94109149]
[1757997656227,0.002,4520.3,4520.2,7.23759149]
[1757997667414,0.002,4520.3,4520.2,4.7288]
[1757997667620,0.002,4520.3,4520.2,4.2701]
[1757997667821,0.5638,4520.3,4520.2,3.691]
[1757997668063,0.5638,4520.3,4520.1,0.001]
[1757997668247,0.5638,4520.3,4520.2,3.691]
[1757997668825,0.8147,4520.3,4520.2,3.691]
[1757997669940,0.5638,4520.3,4520.2,3.691]
[1757997670423,0.002,4520.3,4520.2,3.691]
[1757997670856,0.002,4520.3,4520.2,4.1826]
[1757997671031,0.002,4520.3,4520.2,3.691]
[1757997671243,0.3144,4520.3,4520.2,3.691]
[1757997673880,0.002,4520.3,4520.2,3.691]
[1757997674167,0.002,4520.3,4520.2,4.95992291]
[1757997674473,0.002,4520.3,4520.2,4.9378]
[1757997678176,0.101,4520.3,4520.2,3.691]
[1757997678480,0.002,4520.3,4520.2,3.691]
[1757997678639,0.002,4520.3,4520.2,4.9378]
[1757997679470,0.002,4520.3,4520.2,7.15009149]
[1757997680537,0.002,4520.3,4520.2,4.9378]
[1757997681649,0.002,4520.3,4520.2,3.691]
[1757997682981,0.002,4520.3,4520.2,4.1581]
[1757997684073,0.002,4520.3,4520.2,4.623]
[1757997686460,0.002,4520.3,4520.2,4.1581]
[1757997686656,0.101,4520.3,4520.2,3.691]
[1757997687510,0.5638,4520.3,4520.1,0.001]
[1757997687672,0.5638,4520.3,4520.1,3.692]
[1757997687988,2.92599149,4520.2,4520.1,0.001]
[1757997688179,5.92599149,4520.2,4520.1,0.001]
[1757997688381,6.02649149,4520.2,4520.1,0.001]
[1757997688756,6.11519164,4520.2,4520.1,0.001]
[1757997688958,6.65629164,4520.2,4520.1,0.001]
[1757997689186,6.90569164,4520.2,4520.1,0.001]
[1757997690694,6.65629164,4520.2,4520.1,0.001]
[1757997695371,4.44400015,4520.2,4520.1,0.001]
[1757997695693,3.98120015,4520.2,4520.1,0.001]